fUST/lending_fUST_20250128
["ID","MTS","AMOUNT","RATE_DAILY","PERIOD"]
[350669022,1738049368232,-500.0,0.00016438,2]
[350669023,1738049368253,-500.0,0.00016438,2]
[350669024,1738049368276,-500.0,0.00016438,2]
[350669025,1738049368296,-500.0,0.00016438,2]
[350669026,1738049368317,-500.0,0.00016438,2]
[350669027,1738049368337,-504.25585609,0.00016438,2]
[350669028,1738049368358,-490.63151978,0.00016438,2]
[350669029,1738049368378,-500.0,0.00016438,2]
[350669030,1738049368398,-500.0,0.00016438,2]
[350669031,1738049368418,-500.0,0.00016438,2]
[350669032,1738049368438,-500.0,0.00016438,2]
[350669033,1738049368458,-500.0,0.00016438,2]
[350669034,1738049368479,-509.56956994,0.00016438,2]
[350669035,1738049368500,-500.0,0.00016438,2]
[350669036,1738049368522,-502.76221896,0.00016438,2]
[350669037,1738049368543,-500.0,0.00016438,2]
[350669038,1738049368657,-500.0,0.00016438,2]
[350669039,1738049368678,-500.0,0.00016438,2]
[350669040,1738049368699,-500.0,0.00016438,2]
[350669041,1738049368721,-500.0,0.00016438,2]
[350669042,1738049368741,-501.65314333,0.00016438,2]
[350669043,1738049368763,-500.0,0.00016438,2]
[350669044,1738049368783,-500.0,0.00016438,2]
[350669045,1738049368804,-500.0,0.00016438,2]
[350669046,1738049368824,-500.0,0.00016438,2]
[350669047,1738049368845,-500.0,0.00016438,2]
[350669048,1738049368866,-500.0,0.00016438,2]
[350669049,1738049368887,-500.0,0.00016438,2]
[350669050,1738049368909,-500.0,0.00016438,2]
[350669051,1738049368930,-500.0,0.00016438,2]
[350669052,1738049368951,-500.0,0.00016438,2]
[350669053,1738049368973,-500.0,0.00016438,2]
[350669054,1738049368995,-500.0,0.00016438,2]
[350669055,1738049369016,-500.0,0.00016438,2]
[350669056,1738049369042,-500.0,0.00016438,2]
[350669057,1738049369063,-513.79005489,0.00016438,2]
[350669058,1738049369084,-500.0,0.00016438,2]
[350669059,1738049369105,-500.0,0.00016438,2]
[350669060,1738049369126,-500.0,0.00016438,2]
[350669061,1738049369147,-500.0,0.00016438,2]
[350669062,1738049369167,-500.0,0.00016438,2]
[350669063,1738049369192,-500.0,0.00016438,2]
[350669064,1738049369213,-500.0,0.00016438,2]
[350669065,1738049369236,-500.0,0.00016438,2]
[350669066,1738049369258,-649.37443697,0.00016438,2]
[350669067,1738049369280,-500.0,0.00016438,2]
[350669068,1738049369302,-500.0,0.00016438,2]
[350669069,1738049369324,-500.0,0.00016438,2]
[350669070,1738049369345,-500.0,0.00016438,2]
[350669071,1738049369367,-500.32840243,0.00016438,2]
[350669072,1738049369388,-500.0,0.00016438,2]
[350669073,1738049369410,-500.0,0.00016438,2]
[350669074,1738049369430,-500.0,0.00016438,2]
[350669075,1738049369451,-500.0,0.00016438,2]
[350669076,1738049369473,-500.0,0.00016438,2]
[350669077,1738049369495,-438.8,0.00016438,2]
[350669078,1738049369515,-500.0,0.00016438,2]
[350669079,1738049369537,-500.0,0.00016438,2]
[350669080,1738049369558,-500.0,0.00016438,2]
[350669081,1738049369578,-500.0,0.00016438,2]
[350669082,1738049369598,-500.0,0.00016438,2]
[350669083,1738049369619,-500.0,0.00016438,2]
[350669084,1738049369639,-500.0,0.00016438,2]
[350669085,1738049369660,-492.21816402,0.00016438,2]
[350669086,1738049369680,-500.0,0.00016438,2]
[350669087,1738049369700,-500.0,0.00016438,2]
[350669088,1738049369721,-503.66489458,0.00016438,2]
[350669089,1738049369743,-500.0,0.00016438,2]
[350669090,1738049369762,-361.82698165,0.00016438,2]
[350669091,1738049369782,-501.26228374,0.00016438,2]
[350669092,1738049369803,-500.0,0.00016438,2]
[350669093,1738049369823,-500.0,0.00016438,2]
[350669094,1738049369844,-500.0,0.00016438,2]
[350669095,1738049369864,-177.54524068,0.00016438,2]
[350669096,1738049369886,-180.07281852,0.00016438,2]
[350669097,1738049369906,-500.0,0.00016438,2]
[350669098,1738049369927,-500.0,0.00016438,2]
[350669099,1738049369948,-500.0,0.00016438,2]
[350669100,1738049369970,-151.0,0.00016438,2]
[350669101,1738049369991,-588.3098299,0.00016438,2]
[350669102,1738049370014,-151.0,0.00016438,2]
[350669103,1738049370034,-151.0,0.00016438,2]
[350669104,1738049370054,-575.08561215,0.00016438,2]
[350669105,1738049370075,-500.0,0.00016438,2]
[350669106,1738049370096,-500.0,0.00016438,2]
[350669107,1738049370115,-500.0,0.00016438,2]
[350669108,1738049370137,-500.0,0.00016438,2]
[350669109,1738049370157,-500.0,0.00016438,2]
[350669110,1738049370178,-500.0,0.00016438,2]
[350669111,1738049370201,-500.0,0.00016438,2]
[350669112,1738049370222,-490.19593004,0.00016438,2]
[350669113,1738049370244,-500.0,0.00016438,2]
[350669114,1738049370265,-547.29,0.00016438,2]
[350669115,1738049370289,-393.51331598,0.00016438,2]
[350669116,1738049370310,-500.0,0.00016438,2]
[350669117,1738049370330,-500.0,0.00016438,2]
[350669118,1738049370351,-500.0,0.00016438,2]
[350669119,1738049370373,-500.0,0.00016438,2]
[350669120,1738049370395,-500.0,0.00016438,2]
[350669121,1738049370416,-214.57638857,0.00016438,2]
[350669122,1738049370438,-500.0,0.00016438,2]
[350669123,1738049370458,-151.0,0.00016438,2]
[350669124,1738049370479,-503.31349243,0.00016438,2]
[350669125,1738049370499,-500.0,0.00016438,2]
[350669126,1738049370519,-151.0,0.00016438,2]
[350669127,1738049370540,-500.0,0.00016438,2]
[350669128,1738049370560,-500.0,0.00016438,2]
[350669129,1738049370580,-416.9233071,0.00016438,2]
[350669130,1738049370601,-500.0,0.00016438,2]
[350669131,1738049370621,-500.0,0.00016438,2]
[350669132,1738049370642,-500.0,0.00016438,2]
[350669133,1738049370662,-500.0,0.00016438,2]
[350669134,1738049370682,-503.26659367,0.00016438,2]
[350669135,1738049370704,-513.41654229,0.00016438,2]
[350669136,1738049370724,-500.28117115,0.00016438,2]
[350669137,1738049370744,-151.0,0.00016438,2]
[350669138,1738049370766,-500.0,0.00016438,2]
[350669139,1738049370786,-500.0,0.00016438,2]
[350669140,1738049370806,-500.0,0.00016438,2]
[350669141,1738049370827,-500.0,0.00016438,2]
[350669142,1738049370847,-500.0,0.00016438,2]
[350669143,1738049370868,-500.0,0.00016438,2]
[350669144,1738049370888,-500.0,0.00016438,2]
[350669145,1738049370910,-500.0,0.00016438,2]
[350669146,1738049370930,-500.0,0.00016438,2]
[350669147,1738049370950,-500.0,0.00016438,2]
[350669148,1738049370970,-500.0,0.00016438,2]
[350669149,1738049370995,-500.0,0.00016438,2]
[350669150,1738049371019,-500.0,0.00016438,2]
[350669151,1738049371041,-500.0,0.00016438,2]
[350669152,1738049371062,-207.025353,0.00016438,2]
[350669153,1738049371082,-501.58354436,0.00016438,2]
[350669154,1738049371103,-207.025353,0.00016438,2]
[350669155,1738049371122,-504.22629958,0.00016438,2]
[350669156,1738049371142,-504.76483018,0.00016438,2]
[350669157,1738049371163,-501.94697382,0.00016438,2]
[350669158,1738049371183,-500.73350185,0.00016438,2]
[350669159,1738049371208,-207.025353,0.00016438,2]
[350669160,1738049371229,-207.025353,0.00016438,2]
[350669161,1738049371249,-500.0,0.00016438,2]
[350669162,1738049371269,-271.22707918,0.00016438,2]
[350669163,1738049371290,-500.0,0.00016438,2]
[350669164,1738049371311,-500.0,0.00016438,2]
[350669165,1738049371330,-501.67627659,0.00016438,2]
[350669166,1738049371350,-500.0,0.00016438,2]
[350669167,1738049371376,-500.0,0.00016438,2]
[350669168,1738049371485,-502.08860167,0.00016438,2]
[350669169,1738049371507,-504.23576019,0.00016438,2]
[350669170,1738049371529,-500.0,0.00016438,2]
[350669171,1738049371550,-302.19564218,0.00016438,2]
[350669172,1738049371571,-502.84020059,0.00016438,2]
[350669173,1738049371595,-500.0,0.00016438,2]
[350669174,1738049371617,-500.0,0.00016438,2]
[350669175,1738049371638,-151.0,0.00016438,2]
[350669176,1738049371658,-500.0,0.00016438,2]
[350669177,1738049371679,-151.0,0.00016438,2]
[350669178,1738049371702,-575.99,0.00016438,2]
[350669179,1738049371724,-151.0,0.00016438,2]
[350669180,1738049371744,-500.0,0.00016438,2]
[350669181,1738049371766,-500.0,0.00016438,2]
[350669182,1738049371786,-500.0,0.00016438,2]
[350669183,1738049371807,-377.72460024,0.00016438,2]
[350669184,1738049371828,-500.0,0.00016438,2]
[350669185,1738049371849,-500.0,0.00016438,2]
[350669186,1738049371870,-504.418518,0.00016438,2]
[350669187,1738049371892,-500.0,0.00016438,2]
[350669188,1738049371914,-500.0,0.00016438,2]
[350669189,1738049371935,-234.27252423,0.00016438,2]
[350669190,1738049371955,-500.0,0.00016438,2]
[350669191,1738049371977,-500.0,0.00016438,2]
[350669192,1738049371997,-502.93224134,0.00016438,2]
[350669193,1738049372019,-500.0,0.00016438,2]
[350669194,1738049372040,-500.0,0.00016438,2]
[350669195,1738049372061,-500.0,0.00016438,2]
[350669196,1738049372082,-501.53835197,0.00016438,2]
[350669197,1738049372102,-500.0,0.00016438,2]
[350669198,1738049372126,-500.0,0.00016438,2]
[350669199,1738049372148,-151.0,0.00016438,2]
[350669200,1738049372171,-151.0,0.00016438,2]
[350669201,1738049372197,-500.0,0.00016438,2]
[350669202,1738049372222,-500.0,0.00016438,2]
[350669203,1738049372244,-500.0,0.00016438,2]
[350669204,1738049372268,-500.0,0.00016438,2]
[350669205,1738049372290,-500.0,0.00016438,2]
[350669206,1738049372311,-502.32356925,0.00016438,2]
[350669207,1738049372332,-501.9800186,0.00016438,2]
[350669208,1738049372354,-500.0,0.00016438,2]
[350669209,1738049372378,-500.0,0.00016438,2]
[350669210,1738049372399,-504.08594773,0.00016438,2]
[350669211,1738049372420,-500.0,0.00016438,2]
[350669212,1738049372441,-500.0,0.00016438,2]
[350669213,1738049372462,-500.0,0.00016438,2]
[350669214,1738049372485,-500.0,0.00016438,2]
[350669215,1738049372506,-500.0,0.00016438,2]
[350669216,1738049372528,-500.0,0.00016438,2]
[350669217,1738049372550,-500.0,0.00016438,2]
[350669218,1738049372570,-504.25956278,0.00016438,2]
[350669219,1738049372591,-500.0,0.00016438,2]
[350669220,1738049372615,-500.0,0.00016438,2]
[350669221,1738049372636,-501.80061732,0.00016438,2]
[350669222,1738049372657,-500.0,0.00016438,2]
[350669223,1738049372680,-500.0,0.00016438,2]
[350669224,1738049372701,-500.0,0.00016438,2]
[350669225,1738049372725,-579.99,0.00016438,2]
[350669226,1738049372746,-500.0,0.00016438,2]
[350669227,1738049372767,-500.36370183,0.00016438,2]
[350669228,1738049372788,-500.0,0.00016438,2]
[350669229,1738049372809,-151.0,0.00016438,2]
[350669230,1738049372830,-151.0,0.00016438,2]
[350669231,1738049372850,-151.0,0.00016438,2]
[350669232,1738049372872,-500.0,0.00016438,2]
[350669233,1738049372894,-500.0,0.00016438,2]
[350669234,1738049372915,-500.0,0.00016438,2]
[350669235,1738049372936,-151.0,0.00016438,2]
[350669236,1738049372956,-151.0,0.00016438,2]
[350669237,1738049372976,-151.0,0.00016438,2]
[350669238,1738049372997,-500.0,0.00016438,2]
[350669239,1738049373018,-500.0,0.00016438,2]
[350669240,1738049373040,-504.31240534,0.00016438,2]
[350669241,1738049373063,-500.0,0.00016438,2]
[350669242,1738049373084,-500.0,0.00016438,2]
[350669243,1738049373105,-500.0,0.00016438,2]
[350669244,1738049373126,-500.0,0.00016438,2]
[350669245,1738049373147,-500.0,0.00016438,2]
[350669246,1738049373168,-510.75059231,0.00016438,2]
[350669247,1738049373192,-500.0,0.00016438,2]
[350669248,1738049373214,-500.0,0.00016438,2]
[350669249,1738049373236,-500.0,0.00016438,2]
[350669250,1738049373257,-500.0,0.00016438,2]
[350669251,1738049373280,-500.0,0.00016438,2]
[350669252,1738049373304,-500.0,0.00016438,2]
[350669253,1738049373326,-500.0,0.00016438,2]
[350669254,1738049373348,-500.0,0.00016438,2]
[350669255,1738049373369,-525.53002149,0.00016438,2]
[350669256,1738049373391,-500.0,0.00016438,2]
[350669257,1738049373411,-500.0,0.00016438,2]
[350669258,1738049373434,-500.0,0.00016438,2]
[350669259,1738049373455,-500.0,0.00016438,2]
[350669260,1738049373478,-500.0,0.00016438,2]
[350669261,1738049373500,-500.0,0.00016438,2]
[350669262,1738049373522,-500.0,0.00016438,2]
[350669263,1738049373544,-197.08290386,0.00016438,2]
[350669264,1738049373566,-500.0,0.00016438,2]
[350669265,1738049373587,-502.10336619,0.00016438,2]
[350669266,1738049373611,-500.0,0.00016438,2]
[350669267,1738049373633,-502.64196636,0.00016438,2]
[350669268,1738049373655,-500.0,0.00016438,2]
[350669269,1738049373677,-500.0,0.00016438,2]
[350669270,1738049373699,-500.0,0.00016438,2]
[350669271,1738049373721,-500.0,0.00016438,2]
[350669272,1738049373742,-500.0,0.00016438,2]
[350669273,1738049373767,-500.0,0.00016438,2]
[350669274,1738049373788,-376.42416754,0.00016438,2]
[350669275,1738049373810,-311.64332739,0.00016438,2]
[350669276,1738049373831,-500.0,0.00016438,2]
[350669277,1738049373856,-500.0,0.00016438,2]
[350669278,1738049373877,-583.8603215,0.00016438,2]
[350669279,1738049373898,-170.020443,0.00016438,2]
[350669280,1738049373920,-170.020443,0.00016438,2]
[350669281,1738049373941,-501.97750427,0.00016438,2]
[350669282,1738049373962,-170.020443,0.00016438,2]
[350669283,1738049373985,-170.020443,0.00016438,2]
[350669284,1738049374007,-500.0,0.00016438,2]
[350669285,1738049374031,-500.0,0.00016438,2]
[350669286,1738049374053,-506.09704411,0.00016438,2]
[350669287,1738049374076,-500.0,0.00016438,2]
[350669288,1738049374096,-500.96109735,0.00016438,2]
[350669289,1738049374117,-500.0,0.00016438,2]
[350669290,1738049374138,-170.020443,0.00016438,2]
[350669291,1738049374160,-170.020443,0.00016438,2]
[350669292,1738049374276,-170.020443,0.00016438,2]
[350669293,1738049374300,-170.020443,0.00016438,2]
[350669294,1738049374323,-500.0,0.00016438,2]
[350669295,1738049374346,-500.0,0.00016438,2]
[350669296,1738049374369,-500.0,0.00016438,2]
[350669297,1738049374391,-501.01304964,0.00016438,2]
[350669298,1738049374413,-500.0,0.00016438,2]
[350669299,1738049374434,-151.0,0.00016438,2]
[350669300,1738049374456,-500.0,0.00016438,2]
[350669301,1738049374478,-151.0,0.00016438,2]
[350669302,1738049374499,-500.0,0.00016438,2]
[350669303,1738049374522,-500.0,0.00016438,2]
[350669304,1738049374544,-500.0,0.00016438,2]
[350669305,1738049374568,-500.0,0.00016438,2]
[350669306,1738049374592,-500.0,0.00016438,2]
[350669307,1738049374616,-500.0,0.00016438,2]
[350669308,1738049374639,-500.0,0.00016438,2]
[350669309,1738049374662,-500.0,0.00016438,2]
[350669310,1738049374684,-186.49639373,0.00016438,2]
[350669311,1738049374705,-500.0,0.00016438,2]
[350669312,1738049374726,-321.46397648,0.00016438,2]
[350669313,1738049374746,-502.68493115,0.00016438,2]
[350669314,1738049374766,-151.0,0.00016438,2]
[350669315,1738049374787,-500.0,0.00016438,2]
[350669316,1738049374808,-225.507168,0.00016438,2]
[350669317,1738049374830,-500.0,0.00016438,2]
[350669318,1738049374851,-267.41323441,0.00016473,2]
[350669319,1738049374871,-500.0,0.00016473,2]
[350669320,1738049374891,-161.33615915,0.00016473,2]
[350669321,1738049374912,-500.0,0.00016473,2]
[350669322,1738049374933,-500.0,0.00016473,2]
[350669323,1738049374953,-500.0,0.00016473,2]
[350669324,1738049374974,-500.0,0.00016473,2]
[350669325,1738049374995,-317.07630067,0.00016473,2]
[350669326,1738049375017,-500.0,0.00016473,2]
[350669327,1738049375038,-504.14738196,0.00016473,2]
[350669328,1738049375058,-584.67091768,0.00016473,2]
[350669329,1738049375078,-268.85225062,0.00016473,2]
[350669330,1738049375099,-180.13657522,0.00016473,2]
[350669331,1738049375119,-500.0,0.00016473,2]
[350669332,1738049375139,-500.0,0.00016473,2]
[350669333,1738049375160,-500.0,0.00016473,2]
[350669334,1738049375183,-250.46941507,0.00016473,2]
[350669335,1738049375203,-500.0,0.00016473,2]
[350669336,1738049375225,-566.9160785,0.00016473,2]
[350669337,1738049375246,-500.0,0.00016473,2]
[350669338,1738049375268,-500.0,0.00016473,2]
[350669339,1738049375289,-215.56405883,0.00016473,2]
[350669340,1738049375309,-152.85747292,0.00016473,2]
[350669341,1738049375329,-160.44885372,0.00016473,2]
[350669342,1738049375349,-507.23374426,0.00016473,2]
[350669343,1738049375370,-151.41156765,0.00016473,2]
[350669344,1738049375390,-500.51800097,0.00016483,2]
[350669345,1738049375411,-500.0,0.00016492,2]
[350669346,1738049375432,-151.0,0.000165,2]
[350669347,1738049375452,-151.0,0.0001652,2]
[350669348,1738049375473,-500.75664647,0.00016521,2]
[350669349,1738049375494,-500.0,0.00016574,2]
[350669350,1738049375516,-219.32049181,0.00016575,2]
[350669351,1738049375536,-500.0,0.00016575,2]
[350669352,1738049375557,-500.0,0.00016575,2]
[350669353,1738049375578,-295.07950819,0.00016575,2]
[350669354,1738049375598,-500.0,0.00016575,2]
[350669355,1738049375619,-500.0,0.00016575,2]
[350669356,1738049375641,-500.0,0.00016575,2]
[350669357,1738049375662,-500.0,0.00016575,2]
[350669358,1738049375683,-500.0,0.00016575,2]
[350669359,1738049375705,-500.0,0.00016575,2]
[350669360,1738049375726,-500.0,0.00016575,2]
[350669361,1738049375748,-356.6652349,0.00016575,2]
[350669362,1738049375769,-414.75041187,0.00016575,2]
[350669363,1738049375792,-500.0,0.00016575,2]
[350669364,1738049375817,-500.0,0.00016575,2]
[350669365,1738049375839,-285.67016118,0.00016575,2]
[350669366,1738049375860,-207.025353,0.00016575,2]
[350669367,1738049375882,-207.025353,0.00016575,2]
[350669368,1738049375903,-269.26031206,0.00016575,2]
[350669369,1738049375927,-329.68,0.00016575,2]
[350669370,1738049375951,-500.0,0.00016575,2]
[350669371,1738049375973,-151.0,0.00016575,2]
[350669372,1738049375996,-500.0,0.00016575,2]
[350669373,1738049376019,-595.79,0.00016575,2]
[350669374,1738049376042,-500.0,0.00016575,2]
[350669375,1738049376064,-500.0,0.00016575,2]
[350669376,1738049376088,-500.0,0.00016575,2]
[350669377,1738049376109,-171.888464,0.00016575,2]
[350669378,1738049376130,-151.0,0.00016575,2]
[350669379,1738049376152,-500.0,0.00016575,2]
[350669380,1738049376174,-500.0,0.00016575,2]
[350669381,1738049376200,-336.9,0.00016575,2]
[350669382,1738049376225,-500.0,0.00016575,2]
[350669383,1738049376247,-500.0,0.00016575,2]
[350669384,1738049376273,-500.0,0.00016575,2]
[350669385,1738049376295,-500.0,0.00016575,2]
[350669386,1738049376317,-500.0,0.00016575,2]
[350669387,1738049376340,-500.0,0.00016575,2]
[350669388,1738049376362,-500.0,0.00016575,2]
[350669389,1738049376383,-500.0,0.00016596,2]
[350669390,1738049376407,-501.85124374,0.00016596,2]
[350669391,1738049376428,-395.31853617,0.00016629,2]
[350669392,1738049376449,-510.08297674,0.00016711,2]
[350669393,1738049376469,-151.0,0.00016712,2]
[350669394,1738049376489,-152.593931,0.00016712,2]
[350669395,1738049376511,-390.17623704,0.00016712,2]
[350669396,1738049376532,-151.0,0.00016712,2]
[350669397,1738049376554,-500.0,0.00016712,2]
[350669398,1738049376576,-151.0,0.00016712,2]
[350669399,1738049376597,-151.0,0.00016712,2]
[350669400,1738049376617,-152.373879,0.00016712,2]
[350669401,1738049376638,-500.0,0.00016712,2]
[350669402,1738049376659,-500.0,0.00016712,2]
[350669403,1738049376679,-500.0,0.00016712,2]
[350669404,1738049376700,-500.0,0.00016712,2]
[350669405,1738049376720,-500.0,0.00016712,2]
[350669406,1738049376740,-500.0,0.00016712,2]
[350669407,1738049376760,-500.0,0.00016712,2]
[350669408,1738049376781,-500.0,0.00016712,2]
[350669409,1738049376801,-500.0,0.00016712,2]
[350669410,1738049376822,-500.0,0.00016712,2]
[350669411,1738049376842,-500.0,0.00016712,2]
[350669412,1738049376947,-234.582688,0.00016712,2]
[350669413,1738049376968,-151.0,0.00016712,2]
[350669414,1738049376990,-500.0,0.00016712,2]
[350669415,1738049377011,-151.0,0.00016712,2]
[350669416,1738049377035,-511.98,0.00016712,2]
[350669417,1738049377059,-500.0,0.00016712,2]
[350669418,1738049377083,-327.7,0.00016712,2]
[350669419,1738049377107,-413.52,0.00016712,2]
[350669420,1738049377129,-536.46,0.00016712,2]
[350669421,1738049377153,-500.0,0.00016712,2]
[350669422,1738049377173,-170.020443,0.00016712,2]
[350669423,1738049377197,-170.020443,0.00016712,2]
[350669424,1738049377219,-393.90568768,0.00016788,2]
[350669425,1738049377245,-500.0,0.00016849,2]
[350669426,1738049377270,-500.0,0.00016849,2]
[350669427,1738049377292,-151.0,0.000169,2]
[350669428,1738049377317,-500.0,0.00016986,2]
[350669429,1738049377341,-500.0,0.00016986,2]
[350669430,1738049377363,-151.0,0.00017,2]
[350669431,1738049377385,-500.8551011,0.00017021,2]
[350669432,1738049377407,-504.67669544,0.00017021,2]
[350669433,1738049377428,-500.0,0.00017021,2]
[350669434,1738049377448,-502.43853408,0.00017021,2]
[350669435,1738049377470,-534.42351083,0.00017021,2]
[350669436,1738049377492,-500.0,0.00017021,2]
[350669437,1738049377512,-515.76718599,0.0001704,2]
[350669438,1738049377536,-500.0,0.00017123,2]
[350669439,1738049377560,-420.92720815,0.00017123,2]
[350669500,1738049432160,-500.0,0.00016438,2]
[350669502,1738049432169,-500.0,0.00016438,2]
[350669503,1738049432178,-501.98350979,0.00016438,2]
[350669505,1738049432187,-364.75040147,0.00016438,2]
[350669507,1738049432201,-151.0,0.00016438,2]
[350669519,1738049432315,-151.0,0.00016438,2]
[350669521,1738049432325,-151.0,0.00016438,2]
[350669523,1738049432335,-500.0,0.00016438,2]
[350669525,1738049432345,-504.82755467,0.00016438,2]
[350669527,1738049432354,-70601.0566346,0.00016575,5]
[350669529,1738049432363,-151.0,0.00016629,2]
[350669531,1738049432373,-13224.66868878,0.00016751,2]
[350669532,1738049432382,-79.07279185,0.00017123,2]
[350669534,1738049432392,-500.59366168,0.00017144,2]
[350669536,1738049432401,-500.0,0.0001726,2]
[350669538,1738049432411,-500.0,0.00017397,2]
[350669540,1738049432420,-151.0,0.000174,2]
[350669542,1738049432429,-151.0,0.000175,2]
[350669544,1738049432439,-500.0,0.00017534,2]
[350669546,1738049432448,-500.0,0.00017671,2]
[350669548,1738049432457,-500.0,0.00017808,2]
[350669550,1738049432466,-151.0,0.000179,2]
[350669552,1738049432475,-500.0,0.00017945,2]
[350669553,1738049432484,-151.0,0.00018,2]
[350669555,1738049432493,-500.0,0.00018082,2]
[350669557,1738049432502,-500.0,0.00018219,2]
[350669559,1738049432511,-500.0,0.00018356,2]
[350669561,1738049432521,-151.0,0.000184,2]
[350669563,1738049432530,-500.0,0.00018493,2]
[350669565,1738049432539,-151.0,0.000185,2]
[350669567,1738049432548,-156.26,0.000186,2]
[350669569,1738049432557,-331.05999999,0.0001863,2]
[350669571,1738049432566,-799.884,0.00018674,2]
[350669573,1738049432575,-151.0,0.000189,2]
[350669574,1738049432584,-153.98983571,0.000189,2]
[350669576,1738049432593,-500.0,0.00018919,2]
[350669578,1738049432602,-160.0,0.00018989,2]
[350669580,1738049432611,-2047.0,0.0001899,2]
[350669582,1738049432620,-537.0,0.0001899,2]
[350669584,1738049432629,-2303.0,0.0001899,2]
[350669586,1738049432638,-151.0,0.0001899,2]
[350669587,1738049432647,-151.0,0.0001899,2]
[350669589,1738049432655,-175.659344,0.0001899,2]
[350669591,1738049432664,-151.0,0.0001899,2]
[350669593,1738049432673,-151.0,0.0001899,2]
[350669595,1738049432682,-207.025353,0.0001899,2]
[350669597,1738049432691,-207.025353,0.0001899,2]
[350669599,1738049432704,-151.0,0.0001899,2]
[350669601,1738049432713,-151.0,0.00019,2]
[350669603,1738049432723,-150.93680357,0.00019,2]
[350669605,1738049432732,-500.0,0.00019,2]
[350669607,1738049432742,-310.33365988,0.00019178,7]
[350669609,1738049432751,-164.570709,0.00019178,2]
[350669611,1738049432760,-151.0,0.000194,2]
[350669613,1738049432771,-151.0,0.000194,2]
[350669615,1738049432780,-502.24081162,0.00019548,2]
[350669617,1738049432789,-151.0,0.000199,2]
[350669619,1738049432798,-151.0,0.000199,2]
[350669620,1738049432807,-151.0,0.000199,2]
[350669622,1738049432817,-1000.0,0.0002,20]
[350669623,1738049432826,-4725.0,0.0002,2]
[350669624,1738049432835,-151.0,0.0002,2]
[350669625,1738049432844,-500.0,0.00020015,2]
[350669626,1738049432854,-831.18046218,0.00020076,2]
[350669627,1738049432863,-831.18046218,0.00020176,2]
[350669628,1738049432872,-831.18046218,0.00020276,2]
[350669629,1738049432881,-154.13,0.00020316,2]
[350669630,1738049432891,-249.22,0.00020316,2]
[350669631,1738049432900,-240.769,0.0002033,2]
[350669632,1738049432909,-831.18046218,0.00020376,2]
[350669633,1738049432919,-151.0,0.000204,3]
[350669634,1738049432928,-151.0,0.000204,4]
[350669635,1738049432938,-354.2307862,0.00020438,2]
[350669636,1738049432947,-354.2307862,0.00020438,2]
[350669637,1738049432957,-353.6989878,0.00020438,2]
[350669638,1738049432966,-253.745902,0.00020447,2]
[350669639,1738049432975,-831.18046218,0.00020476,2]
[350669640,1738049432985,-499.0,0.00020547,2]
[350669641,1738049432994,-218.246188,0.00020575,2]
[350669642,1738049433004,-154.1761492,0.00020575,2]
[350669643,1738049433013,-831.18046218,0.00020576,2]
[350669644,1738049433024,-151.0,0.00020629,2]